[Event "Early-Titled-Tuesday-Blitz-November-28-2023"]
[Site "Chess.com"]
[Date "2023.11.28"]
[Round "3"]
[White "LileKoridze"]
[Black "djano"]
[Result "0-1"]
[WhiteElo "2364"]
[BlackElo "2569"]
[TimeControl "180+1"]
[EndTime "8:26:17 PST"]
[Termination "djano won by resignation"]

1. d4 {[%clk 0:03:00.9]} 1... d5 {[%clk 0:02:58.9]} 2. c4 {[%clk 0:03:00.4]}
2... e6 {[%clk 0:02:58.4]} 3. Nf3 {[%clk 0:03:00.2]} 3... c5 {[%clk 0:02:57.5]}
4. cxd5 {[%clk 0:03:00]} 4... exd5 {[%clk 0:02:58.4]} 5. g3 {[%clk 0:03:00.5]}
5... Nf6 {[%clk 0:02:56.5]} 6. Bg2 {[%clk 0:03:00.6]} 6... Nc6 {[%clk
0:02:57.1]} 7. O-O {[%clk 0:02:54]} 7... cxd4 {[%clk 0:02:55.7]} 8. Nxd4 {[%clk
0:02:53.3]} 8... Be7 {[%clk 0:02:55.6]} 9. Nc3 {[%clk 0:02:52.8]} 9... O-O
{[%clk 0:02:55.7]} 10. b3 {[%clk 0:02:48.3]} 10... Re8 {[%clk 0:02:51.5]} 11.
Bb2 {[%clk 0:02:46.3]} 11... Bg4 {[%clk 0:02:50]} 12. h3 {[%clk 0:02:40.4]}
12... Bh5 {[%clk 0:02:49.9]} 13. g4 {[%clk 0:02:40.2]} 13... Bg6 {[%clk
0:02:49.9]} 14. Qd2 {[%clk 0:02:38.8]} 14... Bc5 {[%clk 0:02:38.4]} 15. e3
{[%clk 0:02:37.5]} 15... Nxd4 {[%clk 0:02:37]} 16. exd4 {[%clk 0:02:37.7]} 16...
Bb4 {[%clk 0:02:37.3]} 17. a3 {[%clk 0:02:36.8]} 17... Ne4 {[%clk 0:02:35.8]}
18. Bxe4 {[%clk 0:02:18.7]} 18... Bxc3 {[%clk 0:02:34.4]} 19. Bxc3 {[%clk
0:02:17.7]} 19... Bxe4 {[%clk 0:02:32.7]} 20. f3 {[%clk 0:02:18]} 20... Bg6
{[%clk 0:02:27.9]} 21. Rfe1 {[%clk 0:02:17.4]} 21... Qh4 {[%clk 0:02:27.2]} 22.
Kg2 {[%clk 0:02:16.7]} 22... h6 {[%clk 0:02:21.5]} 23. Rxe8+ {[%clk 0:02:16]}
23... Rxe8 {[%clk 0:02:21.2]} 24. Re1 {[%clk 0:02:16.8]} 24... Rc8 {[%clk
0:02:17.5]} 25. Re5 {[%clk 0:02:13.2]} 25... Qd8 {[%clk 0:02:06.4]} 26. Qe3
{[%clk 0:01:55.7]} 26... f6 {[%clk 0:02:02.5]} 27. Re6 {[%clk 0:01:50.4]} 27...
Bf7 {[%clk 0:02:01.5]} 28. Bb4 {[%clk 0:01:48.1]} 28... Rc2+ {[%clk 0:01:54.4]}
29. Kg1 {[%clk 0:01:47.1]} 29... Bxe6 {[%clk 0:01:49.2]} 30. Qxe6+ {[%clk
0:01:47.3]} 30... Kh8 {[%clk 0:01:49.7]} 31. Qf7 {[%clk 0:01:44.1]} 31... Qc7
{[%clk 0:01:35.3]} 32. Qe8+ {[%clk 0:01:28.9]} 32... Kh7 {[%clk 0:01:32.5]} 33.
Kf1 {[%clk 0:01:26.5]} 33... Qg3 {[%clk 0:01:27.5]} 0-1

[Event "Early-Titled-Tuesday-Blitz-November-28-2023"]
[Site "Chess.com"]
[Date "2023.11.28"]
[Round "3"]
[White "Eloist"]
[Black "Chemim21"]
[Result "0-1"]
[WhiteElo "2380"]
[BlackElo "2209"]
[TimeControl "180+1"]
[EndTime "8:26:26 PST"]
[Termination "Chemim21 won by resignation"]

1. e4 {[%clk 0:02:56.1]} 1... d5 {[%clk 0:02:58.2]} 2. exd5 {[%clk 0:02:55.5]}
2... Qxd5 {[%clk 0:02:58.9]} 3. Nc3 {[%clk 0:02:53.8]} 3... Qa5 {[%clk
0:02:54.5]} 4. d4 {[%clk 0:02:50.9]} 4... c6 {[%clk 0:02:54.5]} 5. Nf3 {[%clk
0:02:47.7]} 5... Nf6 {[%clk 0:02:54.8]} 6. Bc4 {[%clk 0:02:47]} 6... Bg4 {[%clk
0:02:46.9]} 7. h3 {[%clk 0:02:43.7]} 7... Bxf3 {[%clk 0:02:44.6]} 8. Qxf3 {[%clk
0:02:42.9]} 8... e6 {[%clk 0:02:44.8]} 9. Bd2 {[%clk 0:02:37]} 9... Qb6 {[%clk
0:02:41.9]} 10. O-O-O {[%clk 0:02:17.1]} 10... Qxd4 {[%clk 0:02:29]} 11. Bb3
{[%clk 0:02:04.9]} 11... Nbd7 {[%clk 0:02:25.7]} 12. g4 {[%clk 0:01:52.5]} 12...
h6 {[%clk 0:02:10.3]} 13. Be3 {[%clk 0:01:33.4]} 13... Qb4 {[%clk 0:02:01.7]}
14. Rd4 {[%clk 0:01:20.2]} 14... Qa5 {[%clk 0:01:50.3]} 15. Rhd1 {[%clk
0:01:15.9]} 15... Bc5 {[%clk 0:01:35.2]} 16. Ra4 {[%clk 0:01:09]} 16... Bxe3+
{[%clk 0:01:34.1]} 17. fxe3 {[%clk 0:01:06.4]} 17... Qc7 {[%clk 0:01:30]} 18. h4
{[%clk 0:00:59.9]} 18... Ne5 {[%clk 0:01:22.3]} 19. Qg3 {[%clk 0:00:57.8]} 19...
Nd3+ {[%clk 0:01:16.9]} 0-1

[Event "Early-Titled-Tuesday-Blitz-November-28-2023"]
[Site "Chess.com"]
[Date "2023.11.28"]
[Round "3"]
[White "campochess"]
[Black "Kombinator01"]
[Result "1-0"]
[WhiteElo "2238"]
[BlackElo "2392"]
[TimeControl "180+1"]
[EndTime "8:26:27 PST"]
[Termination "campochess won by resignation"]

1. d4 {[%clk 0:02:40.2]} 1... Nf6 {[%clk 0:02:59.3]} 2. Bg5 {[%clk 0:02:37.7]}
2... Ne4 {[%clk 0:02:57.5]} 3. h4 {[%clk 0:02:36.4]} 3... c5 {[%clk 0:02:55.3]}
4. d5 {[%clk 0:02:35.8]} 4... b5 {[%clk 0:02:51.9]} 5. Nd2 {[%clk 0:02:35.6]}
5... Nxd2 {[%clk 0:02:49.4]} 6. Qxd2 {[%clk 0:02:35]} 6... d6 {[%clk 0:02:49.5]}
7. e4 {[%clk 0:02:33.9]} 7... a6 {[%clk 0:02:47.3]} 8. a4 {[%clk 0:02:32.8]}
8... b4 {[%clk 0:02:45]} 9. Bc4 {[%clk 0:02:24.5]} 9... Nd7 {[%clk 0:02:41.5]}
10. Nh3 {[%clk 0:02:21.6]} 10... Qc7 {[%clk 0:02:28.6]} 11. O-O {[%clk 0:02:20]}
11... Ne5 {[%clk 0:02:28]} 12. Be2 {[%clk 0:02:18.3]} 12... Bxh3 {[%clk
0:02:27.6]} 13. gxh3 {[%clk 0:02:16.8]} 13... g6 {[%clk 0:02:26.1]} 14. f4
{[%clk 0:02:15.7]} 14... Nd7 {[%clk 0:02:22.6]} 15. f5 {[%clk 0:02:11.2]} 15...
Bg7 {[%clk 0:02:21.8]} 16. c3 {[%clk 0:02:09.5]} 16... Ne5 {[%clk 0:02:20.6]}
17. h5 {[%clk 0:02:05.2]} 17... h6 {[%clk 0:02:19.2]} 18. Bf4 {[%clk 0:01:55.6]}
18... bxc3 {[%clk 0:02:18]} 19. bxc3 {[%clk 0:01:53.3]} 19... g5 {[%clk
0:02:17.4]} 20. f6 {[%clk 0:01:45.9]} 20... Bxf6 {[%clk 0:02:16.7]} 21. Bg3
{[%clk 0:01:45.7]} 21... Qd7 {[%clk 0:02:11.9]} 22. Rxf6 {[%clk 0:01:40.9]}
22... exf6 {[%clk 0:02:11.4]} 23. Bxe5 {[%clk 0:01:40.9]} 23... fxe5 {[%clk
0:02:10.4]} 24. Bg4 {[%clk 0:01:40.7]} 24... Qb7 {[%clk 0:02:01.6]} 25. Qf2
{[%clk 0:01:37.8]} 25... Rb8 {[%clk 0:01:59.8]} 26. Qf6 {[%clk 0:01:36.8]} 26...
Qe7 {[%clk 0:01:59.5]} 27. Qxh8+ {[%clk 0:01:32.6]} 27... Qf8 {[%clk 0:01:55.9]}
28. Qf6 {[%clk 0:01:26.2]} 28... Qe7 {[%clk 0:01:56.1]} 29. Qxh6 {[%clk
0:01:25.3]} 29... Qa7 {[%clk 0:01:52.5]} 30. c4 {[%clk 0:01:23.3]} 30... Rb2
{[%clk 0:01:50.7]} 31. Rf1 {[%clk 0:01:22.9]} 31... Qb7 {[%clk 0:01:48.1]} 32.
Qxd6 {[%clk 0:01:20.1]} 32... Qb3 {[%clk 0:01:44.9]} 33. Bd7+ {[%clk 0:01:17.5]}
33... Kd8 {[%clk 0:01:44.6]} 34. Be6+ {[%clk 0:01:09.8]} 34... Ke8 {[%clk
0:01:42.2]} 35. Qd7+ {[%clk 0:01:09.7]} 1-0

[Event "Early-Titled-Tuesday-Blitz-November-28-2023"]
[Site "Chess.com"]
[Date "2023.11.28"]
[Round "3"]
[White "KorolDimitriy75"]
[Black "RoelandPruijssers"]
[Result "1-0"]
[WhiteElo "2341"]
[BlackElo "2697"]
[TimeControl "180+1"]
[EndTime "8:26:35 PST"]
[Termination "KorolDimitriy75 won by checkmate"]

1. d4 {[%clk 0:03:00.9]} 1... d5 {[%clk 0:02:58.3]} 2. c4 {[%clk 0:03:01.1]}
2... e6 {[%clk 0:02:58.4]} 3. Nc3 {[%clk 0:03:01.7]} 3... Nf6 {[%clk 0:02:57.3]}
4. Bg5 {[%clk 0:03:01.7]} 4... dxc4 {[%clk 0:02:50.4]} 5. e4 {[%clk 0:03:00.7]}
5... h6 {[%clk 0:02:39]} 6. Bxf6 {[%clk 0:02:58.5]} 6... Qxf6 {[%clk 0:02:39.9]}
7. Bxc4 {[%clk 0:02:58]} 7... b6 {[%clk 0:02:38.8]} 8. Nf3 {[%clk 0:02:51.8]}
8... Bb7 {[%clk 0:02:38.8]} 9. O-O {[%clk 0:02:45.1]} 9... g6 {[%clk 0:02:38.1]}
10. e5 {[%clk 0:02:34.6]} 10... Qe7 {[%clk 0:02:36.7]} 11. d5 {[%clk 0:02:33]}
11... Qc5 {[%clk 0:02:37]} 12. Bb3 {[%clk 0:02:04.6]} 12... exd5 {[%clk
0:02:36.1]} 13. Nxd5 {[%clk 0:02:05.5]} 13... Bxd5 {[%clk 0:02:35.4]} 14. Bxd5
{[%clk 0:01:47.7]} 14... c6 {[%clk 0:02:33.6]} 15. Bb3 {[%clk 0:01:35.2]} 15...
Qe7 {[%clk 0:02:19]} 16. e6 {[%clk 0:01:17.1]} 16... f5 {[%clk 0:02:18.5]} 17.
Ne5 {[%clk 0:01:07.6]} 17... Rg8 {[%clk 0:02:11.6]} 18. Rc1 {[%clk 0:00:59.8]}
18... Qd6 {[%clk 0:02:08.1]} 19. e7 {[%clk 0:00:29.6]} 19... Bxe7 {[%clk
0:02:08.1]} 20. Bxg8 {[%clk 0:00:21.8]} 20... Qxe5 {[%clk 0:02:07.8]} 21. Re1
{[%clk 0:00:20.1]} 21... Qxb2 {[%clk 0:02:06.7]} 22. Qd6 {[%clk 0:00:17.4]}
22... Qg7 {[%clk 0:02:06.1]} 23. Rcd1 {[%clk 0:00:14.2]} 23... Kf8 {[%clk
0:02:03.1]} 24. Qd8+ {[%clk 0:00:12.7]} 24... Bxd8 {[%clk 0:02:00.7]} 25. Rxd8#
{[%clk 0:00:13.6]} 1-0

[Event "Early-Titled-Tuesday-Blitz-November-28-2023"]
[Site "Chess.com"]
[Date "2023.11.28"]
[Round "3"]
[White "wqws"]
[Black "MeesvanOsch"]
[Result "1-0"]
[WhiteElo "2591"]
[BlackElo "2415"]
[TimeControl "180+1"]
[EndTime "8:26:46 PST"]
[Termination "wqws won by resignation"]

1. e4 {[%clk 0:03:00.3]} 1... e6 {[%clk 0:02:59.4]} 2. d4 {[%clk 0:03:00.1]}
2... d5 {[%clk 0:02:59.6]} 3. Nc3 {[%clk 0:03:00.4]} 3... Nf6 {[%clk 0:02:59.4]}
4. Bg5 {[%clk 0:03:00.2]} 4... Bb4 {[%clk 0:02:54.7]} 5. e5 {[%clk 0:03:00.1]}
5... h6 {[%clk 0:02:54.9]} 6. Bd2 {[%clk 0:03:00.2]} 6... Bxc3 {[%clk
0:02:54.7]} 7. bxc3 {[%clk 0:03:01.1]} 7... Ne4 {[%clk 0:02:55.4]} 8. Qg4 {[%clk
0:03:00.9]} 8... Kf8 {[%clk 0:02:54.9]} 9. Nf3 {[%clk 0:03:00.3]} 9... Nxd2
{[%clk 0:02:52.4]} 10. Kxd2 {[%clk 0:02:59.7]} 10... c5 {[%clk 0:02:53]} 11. Bd3
{[%clk 0:02:56]} 11... c4 {[%clk 0:02:49.7]} 12. Be2 {[%clk 0:02:55.8]} 12...
Nc6 {[%clk 0:02:48.8]} 13. h4 {[%clk 0:02:55.4]} 13... Bd7 {[%clk 0:02:48.3]}
14. Rhb1 {[%clk 0:02:55.1]} 14... Rb8 {[%clk 0:02:46.9]} 15. Qf4 {[%clk
0:02:52.3]} 15... b5 {[%clk 0:02:45.7]} 16. a3 {[%clk 0:02:51.9]} 16... a5
{[%clk 0:02:45.6]} 17. g4 {[%clk 0:02:52.1]} 17... Qe7 {[%clk 0:02:45.6]} 18. g5
{[%clk 0:02:52.1]} 18... hxg5 {[%clk 0:02:45.1]} 19. hxg5 {[%clk 0:02:51.1]}
19... Ke8 {[%clk 0:02:45.6]} 20. Rh1 {[%clk 0:02:50.4]} 20... Rxh1 {[%clk
0:02:43.5]} 21. Rxh1 {[%clk 0:02:51.3]} 21... Kd8 {[%clk 0:02:43.2]} 22. Rh7
{[%clk 0:02:41.4]} 22... Be8 {[%clk 0:02:30.6]} 23. Rxg7 {[%clk 0:02:39]} 23...
Qxa3 {[%clk 0:02:30.8]} 24. Qf6+ {[%clk 0:02:38]} 24... Ne7 {[%clk 0:02:23.8]}
25. g6 {[%clk 0:02:37.6]} 25... b4 {[%clk 0:01:49.5]} 26. Ke3 {[%clk 0:02:35]}
26... Qc1+ {[%clk 0:01:43.8]} 27. Nd2 {[%clk 0:02:30]} 27... bxc3 {[%clk
0:01:28.1]} 28. gxf7 {[%clk 0:02:30.1]} 28... Bxf7 {[%clk 0:01:20.7]} 29. Rxf7
{[%clk 0:02:28.4]} 29... Qxd2+ {[%clk 0:01:03.7]} 30. Kf3 {[%clk 0:02:28.4]}
30... Rb7 {[%clk 0:01:03.3]} 31. Qxe6 {[%clk 0:02:27.6]} 31... Ke8 {[%clk
0:00:17.4]} 32. Rh7 {[%clk 0:02:25.7]} 32... Qg5 {[%clk 0:00:04.9]} 33. Rh8+
{[%clk 0:02:24.1]} 1-0

[Event "Early-Titled-Tuesday-Blitz-November-28-2023"]
[Site "Chess.com"]
[Date "2023.11.28"]
[Round "3"]
[White "Felix-Rose"]
[Black "dianamirza"]
[Result "1-0"]
[WhiteElo "2349"]
[BlackElo "1995"]
[TimeControl "180+1"]
[EndTime "8:26:47 PST"]
[Termination "Felix-Rose won by resignation"]

1. e4 {[%clk 0:03:00.3]} 1... c5 {[%clk 0:02:51.3]} 2. Nf3 {[%clk 0:03:00.4]}
2... e6 {[%clk 0:02:51.2]} 3. d4 {[%clk 0:03:00.6]} 3... cxd4 {[%clk 0:02:51.7]}
4. Nxd4 {[%clk 0:03:01.5]} 4... a6 {[%clk 0:02:48.2]} 5. Nc3 {[%clk 0:03:01.2]}
5... Qc7 {[%clk 0:02:45.8]} 6. Bd3 {[%clk 0:03:01.2]} 6... Bb4 {[%clk
0:02:44.9]} 7. Bd2 {[%clk 0:03:00]} 7... Nf6 {[%clk 0:02:45.1]} 8. O-O {[%clk
0:02:59.3]} 8... O-O {[%clk 0:02:42.9]} 9. Qe2 {[%clk 0:02:58.8]} 9... Nc6
{[%clk 0:02:31]} 10. Nxc6 {[%clk 0:02:58.8]} 10... dxc6 {[%clk 0:02:24.7]} 11.
e5 {[%clk 0:02:58.5]} 11... Nd5 {[%clk 0:02:24.6]} 12. Qe4 {[%clk 0:02:54.6]}
12... f5 {[%clk 0:02:19.3]} 13. exf6 {[%clk 0:02:53.4]} 13... Rxf6 {[%clk
0:01:50.2]} 14. Nxd5 {[%clk 0:02:33.7]} 14... exd5 {[%clk 0:01:44.5]} 15. Qxb4
{[%clk 0:02:21.8]} 15... Bf5 {[%clk 0:01:11.6]} 16. Bxf5 {[%clk 0:01:51.6]}
16... Rxf5 {[%clk 0:01:12.5]} 17. Rae1 {[%clk 0:01:51]} 17... Raf8 {[%clk
0:01:10.4]} 18. Re7 {[%clk 0:01:48.1]} 18... Qd8 {[%clk 0:00:41.2]} 19. Qxb7
{[%clk 0:01:45.3]} 19... R8f7 {[%clk 0:00:19.4]} 20. Rxf7 {[%clk 0:01:45]} 20...
Rxf7 {[%clk 0:00:20.3]} 21. Qxc6 {[%clk 0:01:44.7]} 1-0

[Event "Early-Titled-Tuesday-Blitz-November-28-2023"]
[Site "Chess.com"]
[Date "2023.11.28"]
[Round "3"]
[White "Kislov_Oleg"]
[Black "carloseduar100"]
[Result "1-0"]
[WhiteElo "2559"]
[BlackElo "2302"]
[TimeControl "180+1"]
[EndTime "8:26:54 PST"]
[Termination "Kislov_Oleg won by checkmate"]

1. d4 {[%clk 0:03:00.9]} 1... d5 {[%clk 0:02:59]} 2. Bf4 {[%clk 0:03:00.4]} 2...
e6 {[%clk 0:02:59.1]} 3. Nf3 {[%clk 0:03:01]} 3... Bd6 {[%clk 0:03:00]} 4. Bg3
{[%clk 0:03:00.7]} 4... Nf6 {[%clk 0:03:00.1]} 5. e3 {[%clk 0:03:00.7]} 5...
Nbd7 {[%clk 0:03:00.7]} 6. Nbd2 {[%clk 0:03:00.3]} 6... O-O {[%clk 0:03:01.2]}
7. c3 {[%clk 0:03:00.6]} 7... Qe7 {[%clk 0:03:01.6]} 8. Ne5 {[%clk 0:02:59.3]}
8... Re8 {[%clk 0:03:01.2]} 9. Bd3 {[%clk 0:02:58.9]} 9... Nf8 {[%clk
0:03:01.3]} 10. O-O {[%clk 0:02:57]} 10... N6d7 {[%clk 0:03:01.6]} 11. f4 {[%clk
0:02:32.5]} 11... f6 {[%clk 0:03:01]} 12. Nef3 {[%clk 0:02:29]} 12... c6 {[%clk
0:02:59.2]} 13. e4 {[%clk 0:02:28.5]} 13... e5 {[%clk 0:02:59.2]} 14. fxe5
{[%clk 0:02:22.4]} 14... fxe5 {[%clk 0:02:58.8]} 15. exd5 {[%clk 0:02:10]} 15...
exd4 {[%clk 0:02:51.1]} 16. Re1 {[%clk 0:01:50.1]} 16... Bxg3 {[%clk 0:01:56.9]}
17. Rxe7 {[%clk 0:01:47.5]} 17... Rxe7 {[%clk 0:01:57.8]} 18. hxg3 {[%clk
0:01:45.9]} 18... dxc3 {[%clk 0:01:57.7]} 19. dxc6 {[%clk 0:01:39.2]} 19... cxd2
{[%clk 0:01:53.6]} 20. cxd7 {[%clk 0:01:38.4]} 20... Bxd7 {[%clk 0:01:54.5]} 21.
Qxd2 {[%clk 0:01:37.5]} 21... Bc6 {[%clk 0:01:54]} 22. Re1 {[%clk 0:01:35.7]}
22... Rxe1+ {[%clk 0:01:37.9]} 23. Qxe1 {[%clk 0:01:33.8]} 23... h6 {[%clk
0:01:33.6]} 24. Bc4+ {[%clk 0:01:32.3]} 24... Kh8 {[%clk 0:01:32.5]} 25. Qe7
{[%clk 0:01:24]} 25... Re8 {[%clk 0:01:30]} 26. Qf7 {[%clk 0:01:23.5]} 26... Nh7
{[%clk 0:01:14.2]} 27. Nh4 {[%clk 0:01:06.6]} 27... Ng5 {[%clk 0:01:07.8]} 28.
Ng6+ {[%clk 0:01:06.4]} 28... Kh7 {[%clk 0:01:08.1]} 29. Nf8+ {[%clk 0:01:06.5]}
29... Kh8 {[%clk 0:01:08.4]} 30. Qg8# {[%clk 0:01:06.8]} 1-0

[Event "Early-Titled-Tuesday-Blitz-November-28-2023"]
[Site "Chess.com"]
[Date "2023.11.28"]
[Round "3"]
[White "Kaua18"]
[Black "kai_nov"]
[Result "1-0"]
[WhiteElo "2544"]
[BlackElo "2247"]
[TimeControl "180+1"]
[EndTime "8:26:56 PST"]
[Termination "Kaua18 won by resignation"]

1. e4 {[%clk 0:03:00.9]} 1... c5 {[%clk 0:02:59]} 2. Nf3 {[%clk 0:03:01.1]} 2...
Nc6 {[%clk 0:02:57.3]} 3. Bb5 {[%clk 0:03:00]} 3... g6 {[%clk 0:02:56.7]} 4. O-O
{[%clk 0:03:00]} 4... Bg7 {[%clk 0:02:56.4]} 5. Re1 {[%clk 0:02:58.8]} 5... e5
{[%clk 0:02:54.9]} 6. c3 {[%clk 0:02:58.3]} 6... Nge7 {[%clk 0:02:53.9]} 7. d4
{[%clk 0:02:58.7]} 7... cxd4 {[%clk 0:02:50.9]} 8. cxd4 {[%clk 0:02:59.6]} 8...
Nxd4 {[%clk 0:02:47.4]} 9. Nxd4 {[%clk 0:02:59.3]} 9... exd4 {[%clk 0:02:46.5]}
10. Bf4 {[%clk 0:02:58.5]} 10... O-O {[%clk 0:02:42.7]} 11. Bd6 {[%clk
0:02:56.6]} 11... Re8 {[%clk 0:02:35.9]} 12. Nd2 {[%clk 0:02:45.6]} 12... Qb6
{[%clk 0:02:25.4]} 13. Bxe7 {[%clk 0:02:30.9]} 13... Qxb5 {[%clk 0:02:12.1]} 14.
Bd6 {[%clk 0:02:18]} 14... Qxb2 {[%clk 0:02:01.4]} 15. e5 {[%clk 0:01:56.3]}
15... d3 {[%clk 0:01:44.3]} 16. Ne4 {[%clk 0:01:50.3]} 16... Qd4 {[%clk
0:01:29.7]} 17. Nf6+ {[%clk 0:01:41.7]} 17... Bxf6 {[%clk 0:01:25]} 18. exf6
{[%clk 0:01:42.6]} 18... Rxe1+ {[%clk 0:01:20]} 19. Qxe1 {[%clk 0:01:43.5]}
19... Qxd6 {[%clk 0:01:18]} 20. Qe7 {[%clk 0:01:38.1]} 20... Qa3 {[%clk
0:00:16.6]} 21. Qxa3 {[%clk 0:01:35.7]} 1-0

[Event "Early-Titled-Tuesday-Blitz-November-28-2023"]
[Site "Chess.com"]
[Date "2023.11.28"]
[Round "3"]
[White "Kostukov_Alex"]
[Black "alvarorodriguezavila"]
[Result "1-0"]
[WhiteElo "2407"]
[BlackElo "2215"]
[TimeControl "180+1"]
[EndTime "8:26:59 PST"]
[Termination "Kostukov_Alex won by resignation"]

1. g3 {[%clk 0:02:58]} 1... e5 {[%clk 0:02:58.5]} 2. Bg2 {[%clk 0:02:58.1]} 2...
d5 {[%clk 0:02:59]} 3. c4 {[%clk 0:02:58.6]} 3... d4 {[%clk 0:02:53.9]} 4. d3
{[%clk 0:02:58.2]} 4... c5 {[%clk 0:02:53.1]} 5. Nf3 {[%clk 0:02:58.3]} 5... Nc6
{[%clk 0:02:53.4]} 6. O-O {[%clk 0:02:58.6]} 6... Be7 {[%clk 0:02:53.9]} 7. e3
{[%clk 0:02:59.1]} 7... h6 {[%clk 0:02:51.9]} 8. exd4 {[%clk 0:02:59.4]} 8...
exd4 {[%clk 0:02:52.6]} 9. Re1 {[%clk 0:02:59.4]} 9... Nf6 {[%clk 0:02:52.8]}
10. Ne5 {[%clk 0:02:58.4]} 10... O-O {[%clk 0:02:53.3]} 11. Bxc6 {[%clk
0:02:57.2]} 11... Bd6 {[%clk 0:02:10.5]} 12. Bg2 {[%clk 0:02:54.7]} 12... Re8
{[%clk 0:02:11.1]} 13. Nf3 {[%clk 0:02:46.3]} 13... Bg4 {[%clk 0:02:10.6]} 14.
h3 {[%clk 0:02:44.3]} 14... Rxe1+ {[%clk 0:02:09.9]} 15. Qxe1 {[%clk 0:02:43.3]}
15... Bf5 {[%clk 0:02:10.8]} 16. Qd1 {[%clk 0:02:32.8]} 16... Qd7 {[%clk
0:02:11.1]} 17. g4 {[%clk 0:02:30]} 17... Bh7 {[%clk 0:02:06.5]} 18. Bf1 {[%clk
0:02:10.7]} 18... Nxg4 {[%clk 0:01:55.7]} 19. hxg4 {[%clk 0:02:09.2]} 19...
Qxg4+ {[%clk 0:01:56.6]} 20. Bg2 {[%clk 0:02:09.4]} 20... Re8 {[%clk 0:01:55.2]}
21. Nbd2 {[%clk 0:01:45.1]} 21... Bxd3 {[%clk 0:01:51.5]} 22. Nf1 {[%clk
0:01:43.8]} 22... Be2 {[%clk 0:01:51.5]} 23. Qb3 {[%clk 0:01:40.3]} 23... d3
{[%clk 0:01:29.8]} 24. Qxb7 {[%clk 0:01:36.6]} 24... Re4 {[%clk 0:01:02.6]} 25.
N3h2 {[%clk 0:01:29.1]} 1-0

[Event "Early-Titled-Tuesday-Blitz-November-28-2023"]
[Site "Chess.com"]
[Date "2023.11.28"]
[Round "3"]
[White "DenisQ"]
[Black "stollenmonster"]
[Result "1-0"]
[WhiteElo "2666"]
[BlackElo "2879"]
[TimeControl "180+1"]
[EndTime "8:27:05 PST"]
[Termination "DenisQ won by resignation"]

1. Nf3 {[%clk 0:03:00.9]} 1... Nf6 {[%clk 0:03:00.4]} 2. c4 {[%clk 0:03:00.2]}
2... e6 {[%clk 0:03:01.3]} 3. g3 {[%clk 0:02:59.6]} 3... d5 {[%clk 0:03:02.2]}
4. Bg2 {[%clk 0:02:59.5]} 4... Be7 {[%clk 0:03:02.9]} 5. O-O {[%clk 0:02:59.3]}
5... O-O {[%clk 0:03:03.7]} 6. d4 {[%clk 0:02:59.4]} 6... Ne4 {[%clk 0:03:03.1]}
7. Nc3 {[%clk 0:02:57.6]} 7... f5 {[%clk 0:03:03.6]} 8. Ne5 {[%clk 0:02:56.2]}
8... c6 {[%clk 0:03:03.3]} 9. Nxe4 {[%clk 0:02:55.1]} 9... dxe4 {[%clk
0:03:02.8]} 10. f3 {[%clk 0:02:55]} 10... exf3 {[%clk 0:03:03.7]} 11. exf3
{[%clk 0:02:53.3]} 11... Nd7 {[%clk 0:03:04.6]} 12. f4 {[%clk 0:02:49.8]} 12...
Nxe5 {[%clk 0:03:04.6]} 13. dxe5 {[%clk 0:02:48.3]} 13... Bc5+ {[%clk
0:03:02.4]} 14. Kh1 {[%clk 0:02:47.9]} 14... Qe7 {[%clk 0:03:03.1]} 15. Qe2
{[%clk 0:02:46.9]} 15... Bd7 {[%clk 0:03:01.2]} 16. Be3 {[%clk 0:02:46.1]} 16...
Rfd8 {[%clk 0:03:01.5]} 17. Rad1 {[%clk 0:02:44.6]} 17... Be8 {[%clk 0:03:01.1]}
18. Bf3 {[%clk 0:02:41.2]} 18... a5 {[%clk 0:02:55]} 19. Bd2 {[%clk 0:02:26]}
19... Bd4 {[%clk 0:02:51.8]} 20. Bc1 {[%clk 0:02:20.4]} 20... Qc5 {[%clk
0:02:51]} 21. Rd2 {[%clk 0:02:07.6]} 21... Rd7 {[%clk 0:02:47.3]} 22. Rfd1
{[%clk 0:02:06.7]} 22... Rad8 {[%clk 0:02:47.9]} 23. b3 {[%clk 0:02:04.9]} 23...
h6 {[%clk 0:02:30.6]} 24. Kg2 {[%clk 0:02:03.3]} 24... g5 {[%clk 0:02:30.7]} 25.
h3 {[%clk 0:01:22.1]} 25... Qb4 {[%clk 0:02:16]} 26. Rd3 {[%clk 0:01:16.8]}
26... c5 {[%clk 0:02:16.3]} 27. fxg5 {[%clk 0:01:14.9]} 27... b5 {[%clk
0:02:06.6]} 28. Bd2 {[%clk 0:01:11]} 28... Qa3 {[%clk 0:02:05.6]} 29. Bc1 {[%clk
0:01:10.6]} 29... Qb4 {[%clk 0:02:04.4]} 30. a3 {[%clk 0:01:07.5]} 30... bxc4
{[%clk 0:02:04.8]} 31. axb4 {[%clk 0:01:06.8]} 31... cxd3 {[%clk 0:02:05.5]} 32.
Rxd3 {[%clk 0:01:06]} 32... axb4 {[%clk 0:02:02.6]} 33. Bh5 {[%clk 0:00:59.6]}
33... Ra7 {[%clk 0:01:57.9]} 34. Bxe8 {[%clk 0:00:59]} 34... Rxe8 {[%clk
0:01:57.9]} 35. gxh6 {[%clk 0:00:58]} 35... Kh7 {[%clk 0:01:55]} 36. Be3 {[%clk
0:00:55.8]} 36... Rd8 {[%clk 0:01:54.3]} 37. Bxd4 {[%clk 0:00:55.6]} 37... cxd4
{[%clk 0:01:54.7]} 38. h4 {[%clk 0:00:54.1]} 38... Rc7 {[%clk 0:01:54.6]} 39.
Qh5 {[%clk 0:00:53.1]} 39... Rdd7 {[%clk 0:01:50.4]} 40. Qg5 {[%clk 0:00:51.9]}
40... Rc2+ {[%clk 0:01:48.3]} 41. Kh3 {[%clk 0:00:51.2]} 41... Rc3 {[%clk
0:01:48.8]} 42. Rxc3 {[%clk 0:00:38]} 42... bxc3 {[%clk 0:01:49.7]} 43. h5
{[%clk 0:00:38.3]} 1-0

[Event "Early-Titled-Tuesday-Blitz-November-28-2023"]
[Site "Chess.com"]
[Date "2023.11.28"]
[Round "3"]
[White "TimGrutter03"]
[Black "ViktoriyaTarasova"]
[Result "1-0"]
[WhiteElo "2569"]
[BlackElo "2365"]
[TimeControl "180+1"]
[EndTime "8:27:11 PST"]
[Termination "TimGrutter03 won by resignation"]

1. b3 {[%clk 0:03:00.7]} 1... e5 {[%clk 0:02:55.6]} 2. Bb2 {[%clk 0:03:01.6]}
2... Nc6 {[%clk 0:02:55.5]} 3. e3 {[%clk 0:02:59.7]} 3... d5 {[%clk 0:02:55.3]}
4. Bb5 {[%clk 0:02:58.3]} 4... Bd6 {[%clk 0:02:54.9]} 5. Nf3 {[%clk 0:02:57.2]}
5... f6 {[%clk 0:02:51.2]} 6. c4 {[%clk 0:02:55.2]} 6... Ne7 {[%clk 0:02:46.7]}
7. cxd5 {[%clk 0:02:52.1]} 7... Nxd5 {[%clk 0:02:45.8]} 8. Nc3 {[%clk
0:02:49.7]} 8... Ne7 {[%clk 0:02:43.7]} 9. d4 {[%clk 0:02:48.5]} 9... exd4
{[%clk 0:02:39.7]} 10. Nxd4 {[%clk 0:02:47.7]} 10... Bd7 {[%clk 0:02:28.4]} 11.
Bd3 {[%clk 0:02:36]} 11... Ne5 {[%clk 0:02:23.6]} 12. Bc2 {[%clk 0:02:33.8]}
12... a6 {[%clk 0:02:15]} 13. Qd2 {[%clk 0:02:18.5]} 13... O-O {[%clk
0:02:13.9]} 14. O-O-O {[%clk 0:02:15]} 14... f5 {[%clk 0:01:51.5]} 15. f4 {[%clk
0:02:06.8]} 15... N5g6 {[%clk 0:01:48.3]} 16. h4 {[%clk 0:02:02.3]} 16... Nc6
{[%clk 0:01:19.3]} 17. h5 {[%clk 0:01:53.6]} 17... Nge7 {[%clk 0:01:19.1]} 18.
h6 {[%clk 0:01:51.3]} 18... g6 {[%clk 0:01:10.3]} 19. Nce2 {[%clk 0:01:35.6]}
19... Qe8 {[%clk 0:00:44.3]} 20. Nxc6 {[%clk 0:01:28.1]} 20... Nxc6 {[%clk
0:00:27.6]} 21. Qc3 {[%clk 0:01:27.3]} 21... Kf7 {[%clk 0:00:19.3]} 22. Qf6+
{[%clk 0:01:16.8]} 1-0